bitfinex/quotes_ETHUSD_20251011
["timestamp","ask_amount","ask_price","bid_price","bid_amount"]
[1760154495291,4.55802966,3790.8,3790.1,1e-08]
[1760154495496,1.92,3790.6,3790.1,1e-08]
[1760154495695,2.3501,3791.2,3790.1,1e-08]
[1760154495921,4.55838319,3790.2,3790.1,1e-08]
[1760154497111,1.92,3790.2,3790.1,1e-08]
[1760154497801,4.55838319,3790.2,3790.1,1e-08]
[1760154498103,1.92,3790.2,3790.1,1e-08]
[1760154498309,2.63767889,3791.3,3790.1,1e-08]
[1760154498622,0.001,3791.5,3790.1,1e-08]
[1760154498824,2.6385252,3791.5,3790.1,1e-08]
[1760154499007,0.001,3791.5,3790.1,1e-08]
[1760154499332,2.63853681,3791.5,3790.1,1e-08]
[1760154499533,2.63768316,3791.3,3790.1,1e-08]
[1760154500040,0.41382894,3791.1,3790.1,1e-08]
[1760154501941,0.001,3791.5,3790.1,1e-08]
[1760154502312,0.41377972,3791.3,3790.1,1e-08]
[1760154502525,0.001,3791.5,3790.1,0.01962528]
[1760154503214,1.92,3791.4,3790.1,1e-08]
[1760154503532,0.001,3791.5,3790.1,1e-08]
[1760154505409,0.001,3791.5,3790.3,0.6336]
[1760154505940,1.92,3791.1,3790.4,0.01500666]
[1760154506317,2.63777424,3791.1,3790.4,0.01500666]
[1760154506833,0.001,3791.5,3790.4,0.01500666]
[1760154507353,2.63768727,3791.2,3790.4,0.01500666]
[1760154507846,2.63762214,3791.3,3790.4,0.01500666]
[1760154508059,1.22104733,3791.3,3790.4,0.01500666]
[1760154509040,3.85869232,3791.3,3790.4,0.01500666]
[1760154509343,3.85869232,3791.3,3790.3,0.01728153]
[1760154509847,4.27249694,3791.3,3790.3,0.01728153]
[1760154510548,4.27249694,3791.3,3790.3,0.02638313]
[1760154510744,0.41380462,3791.3,3790.3,0.02638313]
[1760154510928,1.92,3791.0,3790.3,0.02638313]
[1760154511818,1.92,3791.0,3790.2,1.26720001]
[1760154512020,1.92,3791.1,3790.2,1.26720001]
[1760154513253,0.41380462,3791.3,3790.2,1.26720001]
[1760154513621,1.92,3791.2,3790.2,1.26720001]
[1760154514037,0.41380462,3791.3,3790.2,1.26720001]
[1760154514257,0.001,3791.5,3790.2,1.26720001]
[1760154514847,0.001,3791.5,3790.2,0.6336]
[1760154515219,1.92,3791.3,3790.3,0.6336]
[1760154515658,2.63762315,3791.3,3790.3,0.6336]
[1760154516023,0.001,3791.5,3790.3,0.6336]
[1760154516024,1.92,3791.1,3790.3,0.6336]
[1760154516445,2.3501,3791.4,3790.1,1e-08]
[1760154516748,1.92,3790.7,3790.1,1e-08]
[1760154516952,1.92,3790.5,3790.1,1e-08]
[1760154517150,2.63804278,3790.7,3790.1,1e-08]
[1760154517357,1.92,3790.7,3790.1,1e-08]
[1760154517532,0.4138687,3790.7,3790.1,1e-08]
[1760154517847,2.63797792,3790.8,3790.1,1e-08]
[1760154518048,1.92,3790.8,3790.1,1e-08]
[1760154518354,1.92,3790.8,3790.2,0.1059343]
[1760154518648,0.4301,3791.4,3790.1,1e-08]
[1760154518857,1.92,3790.9,3790.1,1e-08]
[1760154519151,0.4311,3791.5,3790.1,0.01722835]
[1760154519152,2.6376906,3791.2,3790.1,0.01722835]
[1760154519350,0.001,3791.5,3790.1,0.65082835]
[1760154519551,0.001,3791.5,3790.5,0.6336]
[1760154519937,0.001,3791.5,3790.1,1e-08]
[1760154520153,2.63795418,3790.9,3790.1,0.63360001]
[1760154520355,2.3501,3791.4,3790.1,0.63360001]
[1760154520565,2.3501,3791.4,3790.1,1e-08]
[1760154520849,1.92,3790.9,3790.1,1e-08]
[1760154521032,1.92,3791.0,3790.1,1e-08]
[1760154521227,1.92,3790.8,3790.1,1e-08]
[1760154521823,2.63783908,3791.0,3790.1,1e-08]
[1760154522141,0.41381636,3791.1,3790.1,1e-08]
[1760154522347,1.92,3790.9,3790.1,1e-08]
[1760154522521,4.55789601,3790.9,3790.8,14.5]
[1760154522721,1.92,3790.9,3790.8,14.5]
[1760154524259,0.001,3791.9,3790.9,0.6336]
[1760154524422,2.63734038,3791.7,3790.9,0.6336]
[1760154524628,2.63734038,3791.7,3790.1,1e-08]
[1760154524984,1.921,3791.5,3790.1,1e-08]
[1760154525264,0.001,3791.5,3791.2,14.5]
[1760154527079,1.92,3791.3,3791.2,14.5]
[1760154527261,2.63799615,3790.8,3790.1,1e-08]
[1760154527444,1.92,3790.3,3790.1,1e-08]
[1760154527948,2.63838319,3790.2,3790.1,1e-08]
[1760154528589,0.41390718,3790.3,3790.1,1e-08]
[1760154529164,4.55838319,3790.2,3790.1,1e-08]
[1760154529358,1.92,3790.2,3790.1,1e-08]
[1760154529770,4.55838319,3790.2,3790.1,1e-08]
[1760154529995,1.92,3790.2,3790.1,1e-08]
[1760154530170,4.55838319,3790.2,3790.1,1e-08]
[1760154531170,1.92,3790.2,3790.1,1e-08]
[1760154532687,1.92,3790.2,3790.1,14.50000001]
[1760154535090,4.55838319,3790.2,3790.1,14.50000001]
[1760154535291,1.92,3790.2,3790.1,14.50000001]
[1760154535690,4.55838319,3790.2,3790.1,14.50000001]
[1760154537200,1.92,3790.2,3790.1,14.50000001]
[1760154540113,0.001,3791.9,3790.2,0.6336]
[1760154540414,0.001,3791.3,3790.3,0.00607737]
[1760154540815,0.001,3791.3,3791.2,14.5]
[1760154541424,1.921,3791.3,3791.2,14.5]
[1760154541775,4.5586177,3791.3,3791.2,14.5]
[1760154541986,5.0088177,3791.3,3791.2,14.5]
[1760154542388,1.921,3791.3,3791.2,14.5]
[1760154542582,4.5586177,3791.3,3791.2,14.5]
[1760154543071,5.42260751,3791.3,3791.2,14.5]
[1760154544319,1.92,3790.6,3790.1,1e-08]
[1760154544684,2.63812119,3790.6,3790.1,1e-08]
[1760154545201,2.6379656,3790.8,3790.5,14.5]
[1760154545408,4.55810478,3790.6,3790.5,14.5]
[1760154546509,5.00830478,3790.6,3790.5,14.5]
[1760154547302,2.63838319,3790.2,3790.1,1e-08]
[1760154547501,4.55838319,3790.2,3790.1,1e-08]
[1760154547704,5.00858319,3790.2,3790.1,1e-08]
[1760154547883,5.42253385,3790.2,3790.1,1e-08]
[1760154548475,5.00858319,3790.2,3790.1,1e-08]
[1760154548887,1.92,3790.2,3790.1,1e-08]
[1760154549311,4.55838319,3790.2,3790.1,1e-08]
[1760154549518,1.92,3790.2,3790.1,1e-08]
[1760154549716,4.55838319,3790.2,3790.1,1e-08]
[1760154549918,1.92,3790.2,3790.1,1e-08]
[1760154550125,0.001,3791.3,3790.1,1e-08]
[1760154550291,2.63788647,3791.0,3790.1,1e-08]
[1760154550491,0.001,3791.3,3790.1,1e-08]
[1760154550791,0.001,3791.3,3790.9,14.5]
[1760154551305,0.001,3791.3,3790.1,1e-08]
[1760154551817,1.921,3791.3,3791.2,14.5]
[1760154552025,2.6386177,3791.3,3791.2,14.5]
[1760154552791,3.05240564,3791.3,3791.2,14.5]
[1760154552989,0.41478794,3791.3,3791.2,14.5]
[1760154553200,4.97240564,3791.3,3791.2,14.5]
[1760154553719,2.33478794,3791.3,3791.2,14.5]
[1760154553896,4.97240564,3791.3,3791.2,14.5]
[1760154555429,4.5586177,3791.3,3791.2,14.5]
[1760154556537,1.921,3791.3,3791.2,14.5]
[1760154556749,4.5586177,3791.3,3791.2,14.5]
[1760154557110,1.921,3791.3,3791.2,14.5]
[1760154557724,0.001,3791.3,3791.2,14.5]
[1760154558921,0.001,3791.3,3791.2,15.1336]
[1760154559832,0.001,3791.3,3791.2,15.23948971]
[1760154561931,0.001,3791.7,3791.6,2.637409]
[1760154562131,0.001,3791.7,3791.6,3.28319344]
[1760154562340,0.001,3791.7,3791.6,3.271009]
[1760154562551,0.001,3791.7,3791.6,3.402209]
[1760154562744,0.001,3791.7,3791.6,17.902209]
[1760154564156,0.001,3791.9,3791.8,3.27086989]
[1760154564451,0.001,3791.9,3791.8,3.40206989]
[1760154565155,2.63434453,3796.1,3792.0,0.6336]
[1760154565352,1.38124705,3796.2,3793.3,0.6336]
[1760154565520,2.63506649,3795.0,3793.4,0.02636157]
[1760154565850,0.2187,3795.6,3793.4,0.02636157]
[1760154566049,2.63492724,3795.2,3794.6,14.5]
[1760154566352,2.0580858,3795.3,3794.6,14.5]
[1760154566564,1.92,3795.0,3794.6,14.5]
[1760154567450,0.4591,3795.8,3793.5,0.79365604]
[1760154567451,2.6339546,3796.6,3794.0,0.6336]
[1760154567660,0.1380707,3795.9,3794.0,0.6336]
[1760154567835,0.1380707,3795.9,3795.3,14.5]
[1760154568024,2.63463515,3795.6,3795.3,14.5]
[1760154568226,0.1380707,3795.9,3795.3,14.5]
[1760154568721,3.04776817,3795.8,3795.3,14.5]
[1760154568922,0.41327742,3795.8,3795.3,14.5]
[1760154569160,1.92,3795.4,3795.3,14.5]
[1760154569455,1.92,3795.7,3795.3,14.5]
[1760154569757,2.63457778,3795.7,3795.3,14.5]
[1760154570150,1.92,3795.6,3795.3,14.5]
[1760154570354,1.92,3795.7,3794.5,1.42706921]
[1760154570555,0.41327742,3795.8,3794.6,0.65772832]
[1760154570958,0.41327742,3795.8,3795.7,14.5]
[1760154571324,2.8515219,3798.3,3795.8,0.6336]
[1760154571525,0.25734546,3798.3,3795.1,0.6336]
[1760154571743,0.13801806,3797.5,3795.7,0.6336]
[1760154572253,1.92,3797.3,3797.2,14.5]
[1760154572456,0.13800462,3797.6,3797.2,14.5]
[1760154573032,2.63296534,3798.0,3797.2,14.5]
[1760154573362,0.1379934,3798.2,3797.2,14.5]
[1760154573550,0.1379934,3798.2,3796.5,0.6336]
[1760154573749,2.77082583,3798.2,3796.5,0.6336]
[1760154573937,2.63292161,3798.1,3797.9,14.5]
[1760154574255,0.2187,3800.0,3797.9,14.5]
[1760154574455,0.4591,3799.8,3797.9,14.5]
[1760154574628,0.13795913,3798.8,3797.9,14.5]
[1760154574828,2.63256138,3798.6,3797.9,14.5]
[1760154575029,1.32388572,3799.5,3797.9,14.5]
[1760154575364,2.63268029,3798.5,3797.3,0.6336]
[1760154575549,0.1379611,3799.1,3797.3,0.6336]
[1760154575748,1.92,3798.2,3796.2,0.6336]
[1760154575949,0.001,3798.3,3797.2,0.6336]
[1760154576463,4.55375675,3798.3,3798.2,14.5]
[1760154577062,5.01285675,3798.3,3798.2,14.5]
[1760154577263,1.92,3798.2,3796.6,0.79298892]
[1760154577560,2.3801,3798.3,3796.6,0.79298892]
[1760154577561,2.63386625,3796.7,3796.6,0.79298892]
[1760154577861,2.63386625,3796.7,3794.6,2.63532325]
[1760154577862,1.92,3796.4,3794.0,2.63567546]
[1760154578163,2.63438641,3796.0,3794.7,0.79328877]
[1760154578367,0.4591,3796.4,3792.9,14.02710593]
[1760154578540,1.92,3796.6,3792.9,14.02710593]
[1760154578871,1.92,3796.6,3794.4,0.6336]
[1760154578872,2.63456114,3795.7,3794.4,0.6336]
[1760154579081,4.55465466,3795.6,3794.4,0.6336]
[1760154579293,1.92,3795.6,3794.4,0.6336]
[1760154579455,2.63464362,3795.6,3794.3,0.79346712]
[1760154579658,0.41329335,3796.0,3794.3,0.79346712]
[1760154579856,0.6778,3795.9,3792.9,14.02710593]
[1760154580059,0.6778,3795.9,3793.0,0.79355947]
[1760154580060,2.63506335,3795.0,3793.0,0.79355947]
[1760154580365,0.41329335,3796.0,3793.4,0.6336]
[1760154580679,1.92,3795.2,3793.0,0.79355947]
[1760154580887,2.63471906,3795.5,3793.4,2.63614798]
[1760154580888,4.55480004,3795.4,3793.4,2.63614798]
[1760154581054,0.413326,3795.5,3793.5,0.6336]
[1760154581259,0.413326,3795.5,3793.2,2.63627247]
[1760154581260,2.6347684,3795.4,3793.2,2.63627247]
[1760154581446,0.413326,3795.5,3793.0,0.79355947]
[1760154581650,2.63489517,3795.3,3793.1,3.26990349]
[1760154581850,1.92,3795.0,3793.1,0.6336]
[1760154582096,1.92,3795.0,3793.0,0.79355947]
[1760154582097,1.92,3795.2,3793.3,2.63620639]
[1760154582266,1.92,3795.3,3793.4,3.2697423]
[1760154582461,1.92,3795.3,3793.4,0.6336]
[1760154582771,0.6778,3795.9,3793.1,0.6336]
[1760154582964,1.92,3794.9,3793.1,0.6336]
[1760154583284,1.92,3795.2,3793.2,0.02636296]
[1760154583457,1.92,3794.8,3793.2,0.02636296]
[1760154583649,0.4591,3795.6,3793.1,0.6336]
[1760154583846,1.92,3794.5,3793.1,0.6336]
[1760154584080,1.92,3794.7,3793.1,0.6336]
[1760154584282,1.92,3794.9,3793.1,0.6336]
[1760154584450,1.92,3794.7,3793.1,0.6336]
[1760154584646,1.92,3794.7,3793.0,0.79355947]
[1760154584893,1.92,3794.1,3791.9,2.63713246]
[1760154585047,1.92,3794.1,3792.0,0.6336]
[1760154585251,2.63568645,3794.1,3792.1,2.63706125]
[1760154585552,0.86005265,3794.7,3791.7,2.63727208]
[1760154585553,1.92,3794.5,3791.7,2.63727208]
[1760154585747,1.92,3793.8,3791.5,3.43121525]
[1760154585978,1.92,3793.5,3791.5,0.79378204]
[1760154586183,1.92,3793.6,3791.8,0.6336]
[1760154586383,4.5556017,3794.2,3791.9,2.65097105]
[1760154586557,1.92,3794.3,3792.0,2.6371308]
[1760154586761,1.92,3793.9,3792.3,0.6336]
[1760154587080,1.92,3793.7,3791.9,2.63718541]
[1760154587263,1.92,3794.0,3792.0,0.6336]
[1760154587466,1.92,3794.2,3792.3,0.6336]
[1760154587771,4.55575379,3794.0,3792.3,0.6336]
[1760154587957,1.92,3793.8,3792.2,0.6336]
[1760154588153,2.63553224,3794.3,3792.2,0.6336]
[1760154588350,1.92,3793.4,3792.1,0.79381984]
[1760154588679,2.63679797,3792.5,3790.8,0.002]
[1760154588856,3.43456636,3793.3,3791.2,0.79381984]
[1760154588857,2.6366395,3792.8,3791.2,0.79381984]
[1760154589056,1.92,3792.5,3791.2,0.79381984]
[1760154589280,0.2235,3793.9,3791.3,0.02637617]
[1760154589483,1.92,3794.0,3791.3,0.65997617]
[1760154589661,0.4336,3794.5,3791.5,0.6336]
[1760154589662,1.92,3793.4,3791.5,0.6336]
[1760154589857,1.92,3793.5,3791.5,0.6336]
[1760154590057,3.0326344,3794.8,3791.9,0.6336]
[1760154590058,0.41355019,3793.8,3791.9,0.6336]
[1760154590280,0.41355019,3793.8,3792.3,0.6336]
[1760154590462,0.41355019,3793.8,3792.4,0.65996851]
[1760154590646,4.55553516,3794.3,3792.4,0.02636851]
[1760154590851,2.63573968,3794.1,3792.4,0.02636851]
[1760154591058,0.41349087,3794.2,3791.9,0.6336]
[1760154591282,1.23015599,3794.1,3791.1,0.002]
[1760154591483,1.32528363,3793.9,3791.3,0.6336]
[1760154591685,2.63656177,3792.9,3791.3,0.6336]
[1760154591990,1.92,3792.8,3791.3,0.6336]
[1760154592283,2.33358597,3793.3,3791.1,0.002]
[1760154592584,2.63673388,3792.6,3791.1,0.002]
[1760154592790,1.92,3793.2,3791.1,0.002]
[1760154593092,1.92,3792.4,3791.1,0.002]
[1760154593482,1.92,3792.5,3791.3,0.6336]
[1760154593667,1.92,3792.5,3791.4,0.02637548]
[1760154593889,0.41362994,3792.7,3791.3,0.6336]
[1760154594094,0.41362994,3792.7,3791.4,0.02637548]
[1760154594391,0.41362994,3792.7,3791.9,0.002]
[1760154594598,1.92,3793.1,3791.9,0.002]
[1760154594809,1.92,3793.0,3791.9,0.002]
[1760154594989,1.92,3792.8,3791.9,0.002]
[1760154595194,0.41359509,3793.0,3791.9,0.002]
[1760154595401,0.41359509,3793.0,3791.9,0.02837199]
[1760154595715,1.92,3793.1,3791.9,0.02837199]
[1760154595914,0.4324,3793.9,3791.9,0.02837199]
[1760154596416,1.92,3793.5,3792.0,0.6599713]
[1760154596587,1.92,3793.3,3792.0,1.45394661]
[1760154597111,2.63609445,3793.5,3792.0,1.45394661]
[1760154597312,1.92,3793.4,3792.0,1.45394661]
[1760154597710,1.92,3793.3,3792.0,1.45394661]
[1760154598100,2.63601855,3793.6,3792.0,1.45394661]
[1760154598301,0.39680334,3795.0,3792.0,1.45394661]
[1760154598511,2.63586077,3793.9,3792.0,1.42757531]
[1760154598715,0.4324,3794.7,3792.0,4.09107029]
[1760154598915,2.63540268,3794.5,3792.2,0.6336]
[1760154599120,0.40095265,3795.2,3792.3,0.02636922]
[1760154599314,2.63553706,3794.3,3792.4,0.6336]
[1760154599618,2.63580705,3794.0,3792.5,0.02636783]
[1760154599820,1.92,3794.0,3792.5,0.02636783]
[1760154599987,2.33348163,3794.1,3792.5,0.02636783]
[1760154600188,0.41348163,3794.1,3792.4,0.4324]
[1760154600391,1.92,3793.9,3792.0,0.6336]
[1760154600589,0.41348163,3794.1,3792.5,0.6336]
[1760154600920,0.41348163,3794.1,3792.4,0.79382404]
[1760154601128,2.6371308,3792.0,3791.9,0.002]
[1760154601297,4.5571308,3792.0,3791.9,0.002]
[1760154601506,5.78728679,3792.0,3791.9,0.002]
[1760154601722,6.20100729,3792.0,3791.9,0.002]
[1760154601933,2.637409,3791.6,3790.8,0.002]
[1760154602225,4.55768727,3791.2,3790.8,0.002]
[1760154602429,4.95863992,3791.2,3790.8,0.002]
[1760154602730,2.63789601,3790.9,3790.8,0.002]
[1760154602926,4.55817438,3790.5,3790.4,0.002]
[1760154603301,4.99057438,3790.5,3790.4,0.002]
[1760154604090,4.55817438,3790.5,3790.4,0.002]
[1760154604297,4.9720614,3790.5,3790.4,0.002]
[1760154604592,2.33388702,3790.5,3790.4,0.002]
[1760154604796,1.92,3790.5,3790.4,0.002]
[1760154606121,4.99057438,3790.5,3790.4,0.002]
[1760154607719,5.40444063,3790.5,3790.4,0.002]
[1760154607921,2.33386625,3790.5,3790.4,0.002]
[1760154608228,0.41386625,3790.5,3790.4,0.002]
[1760154608720,1.92,3791.2,3790.4,0.002]
[1760154608958,0.41384883,3791.3,3790.4,0.002]
[1760154609114,0.4324,3792.0,3790.4,0.01]
[1760154609317,0.6577,3792.5,3790.4,0.01]
[1760154609638,0.41374061,3791.9,3790.4,0.01]
[1760154610947,3.05094673,3791.9,3790.4,0.01]
[1760154611359,1.92,3791.7,3790.4,0.01]
[1760154611714,0.41374061,3791.9,3790.4,0.01]
[1760154612510,0.41374061,3791.9,3791.3,0.6336]
[1760154612716,2.63651478,3792.9,3791.4,0.008]
[1760154612931,0.41365475,3792.9,3791.5,0.6336]
[1760154613139,0.4324,3793.6,3791.6,0.6416]
[1760154613331,2.63595233,3793.7,3791.7,0.6416]
[1760154613635,0.84600077,3793.7,3791.8,0.008]
[1760154613825,2.63601855,3793.6,3791.8,0.008]
[1760154614026,0.84600077,3793.7,3791.8,0.008]
[1760154614233,0.84600077,3793.7,3791.3,0.008]
[1760154614234,2.63658146,3792.8,3791.3,0.008]
[1760154614420,1.92,3792.7,3791.3,0.008]
[1760154614620,1.92,3793.0,3791.3,0.008]
[1760154614831,0.41361537,3793.1,3791.3,0.008]
[1760154615032,0.41361537,3793.1,3791.4,0.01469973]
[1760154615249,0.2253,3793.8,3791.5,0.008]
[1760154615450,0.4483,3793.7,3791.6,0.6336]
[1760154615652,1.92,3792.8,3791.6,0.6336]
[1760154616155,1.92,3792.6,3791.5,0.6336]
[1760154616454,1.92,3792.7,3791.5,0.6336]
[1760154616655,1.92,3792.1,3791.4,0.008]
[1760154616859,1.92,3792.1,3790.7,0.6336]
[1760154616860,2.63712554,3792.1,3791.3,0.6336]
[1760154617154,1.32741257,3793.0,3790.8,0.008]
[1760154617155,1.92,3792.3,3790.8,0.008]
[1760154617456,2.63734011,3791.7,3790.4,0.01]
[1760154617754,1.92,3791.7,3790.4,0.01]
[1760154617929,1.92,3792.1,3790.4,0.01]
[1760154618124,1.92,3791.7,3791.0,0.6336]
[1760154618533,0.4483,3792.4,3791.0,0.6336]
[1760154618534,1.92,3792.3,3791.0,0.6336]
[1760154618740,0.84925265,3792.2,3790.4,0.002]
[1760154618976,1.92,3792.2,3790.9,0.6416]
[1760154619162,1.92,3792.0,3790.9,0.6416]
[1760154619369,1.92,3791.8,3790.9,0.6416]
[1760154619538,4.55717623,3792.0,3790.9,0.6416]
[1760154619745,1.92,3792.0,3790.9,0.6416]
[1760154619962,1.92,3792.2,3791.0,0.008]
[1760154620193,1.92,3792.3,3791.4,0.6336]
[1760154620366,2.63629286,3793.3,3791.5,0.008]
[1760154620667,2.63578428,3794.0,3791.5,0.008]
[1760154620836,0.4483,3794.5,3791.6,0.6336]
[1760154621035,0.4483,3794.5,3791.9,0.6336]
[1760154621239,0.4483,3794.5,3792.0,0.008]
[1760154621240,1.92,3794.0,3792.0,0.008]
[1760154621477,0.4483,3794.5,3792.0,0.6416]
[1760154621683,2.63565583,3794.2,3792.1,0.008]
[1760154621864,0.4483,3794.5,3792.1,0.008]
[1760154622042,1.92,3793.8,3792.1,0.008]
[1760154622238,1.92,3793.9,3792.1,0.008]
[1760154623289,1.92,3793.8,3792.1,0.008]
[1760154623842,1.92,3794.1,3792.1,0.008]
[1760154624074,2.6358884,3793.8,3792.1,0.008]
[1760154624294,0.41351547,3794.2,3792.1,0.008]
[1760154624495,2.63585003,3793.9,3792.1,0.008]
[1760154624692,1.92,3793.7,3792.1,0.008]
[1760154624918,4.55584716,3793.9,3792.1,0.008]
[1760154625121,1.92,3793.5,3791.4,0.6336]
[1760154625287,2.63551992,3794.4,3791.8,0.008]
[1760154625485,1.92,3794.0,3791.8,0.6416]
[1760154625691,2.63587982,3793.8,3791.9,0.008]
[1760154626006,2.63587982,3793.8,3792.0,0.01196379]
[1760154626321,1.92,3794.0,3792.1,0.008]
[1760154626322,1.92,3793.6,3792.1,0.008]
[1760154626525,1.92,3793.7,3792.1,0.008]
[1760154627392,0.4483,3794.6,3792.1,0.008]
[1760154627393,0.4483,3795.3,3792.2,0.7648]
[1760154627598,0.4483,3795.3,3792.5,0.1312]
[1760154627599,2.63490725,3795.2,3792.5,0.1312]
[1760154627795,1.92,3795.1,3792.6,0.008]
[1760154627995,1.92,3794.5,3792.6,0.008]
[1760154628517,3.08313931,3795.3,3792.6,0.008]
[1760154628690,1.92,3795.0,3792.6,0.008]
[1760154628898,2.63556288,3794.3,3792.6,0.008]
[1760154629293,2.63536903,3794.6,3792.6,0.008]
[1760154629294,1.92,3793.8,3792.6,0.008]
[1760154629621,2.63567267,3794.1,3792.6,0.008]
[1760154629819,0.4134519,3794.5,3792.6,0.008]
[1760154630119,0.4134519,3794.5,3792.7,0.65996644]
[1760154630120,2.63575077,3794.0,3792.7,0.65996644]
[1760154630319,1.92,3793.9,3792.7,0.02636644]
[1760154630622,2.63581158,3793.9,3792.8,0.008]
[1760154630915,1.92,3794.2,3792.8,0.008]
[1760154631120,1.92,3794.0,3792.8,0.008]
[1760154631318,0.4134519,3794.5,3792.9,0.01812632]
[1760154631534,2.3334519,3794.5,3793.0,0.008]
[1760154631739,0.001,3795.1,3794.5,2.63539333]
[1760154632034,0.001,3795.8,3794.4,14.20109588]
[1760154632035,0.001,3795.8,3794.6,0.64120239]
[1760154632324,0.001,3795.8,3795.6,0.6336]
[1760154632486,0.001,3795.8,3795.7,3.26816016]
[1760154633095,0.001,3796.6,3796.5,0.6336]
[1760154636608,0.001,3796.6,3795.9,0.6336]
[1760154636991,0.001,3796.6,3796.0,0.6336]
[1760154637924,0.001,3796.6,3796.1,0.6336]
[1760154638240,0.001,3796.6,3796.2,0.01284985]
[1760154639229,0.001,3796.6,3796.3,0.6336]
[1760154639429,0.001,3796.6,3796.4,0.01284917]
[1760154639638,0.001,3796.6,3796.5,0.6336]
[1760154640001,0.1379611,3799.1,3797.2,0.6336]
[1760154640335,0.1379611,3799.1,3797.4,0.6336]
[1760154640543,0.41300022,3799.7,3797.4,0.6336]
[1760154640839,2.6319396,3799.5,3797.8,0.6336]
[1760154641003,2.6320003,3799.4,3797.8,0.6336]
[1760154641199,2.63192525,3799.5,3797.8,0.6336]
[1760154641407,2.05792946,3799.6,3797.8,0.6336]
[1760154641644,1.92,3799.2,3797.8,0.6336]
[1760154641813,2.63211489,3799.3,3797.5,0.1312]
[1760154642012,1.92,3799.2,3797.6,0.6336]
[1760154642342,1.92,3799.5,3797.8,0.6336]
[1760154642503,2.63196758,3799.5,3799.4,15.1336]
[1760154642698,2.76979027,3799.6,3799.4,15.1336]
[1760154642942,0.13792946,3799.6,3799.4,14.5]
[1760154643228,0.13792946,3799.6,3797.1,14.20109588]
[1760154643229,4.55202102,3799.4,3797.6,0.6336]
[1760154643440,4.68980009,3799.6,3797.6,0.6336]
[1760154643605,1.92,3799.2,3797.6,0.6336]
[1760154644031,1.92,3799.3,3799.1,14.5]
[1760154644426,1.92,3799.2,3797.3,0.6336]
[1760154644608,2.6322728,3799.0,3797.3,0.6336]
[1760154644838,0.13792946,3799.6,3797.8,14.20109588]
[1760154645011,0.00845,3800.8,3799.6,0.6336]
[1760154645405,0.00845,3800.8,3799.2,0.6336]
[1760154645839,0.00845,3800.8,3800.1,14.5]
[1760154646536,4.55144045,3800.2,3800.1,14.5]
[1760154646713,2.63226312,3799.1,3797.2,0.79251757]
[1760154646921,1.92,3798.9,3796.8,14.20109588]
[1760154647128,1.92,3798.9,3795.9,1.92]
[1760154647129,2.63237464,3798.9,3796.5,0.7926851]
[1760154647441,1.92,3798.8,3796.3,0.6336]
[1760154647734,4.55236694,3798.9,3798.3,14.5]
[1760154647934,4.55268744,3798.4,3798.3,14.5]
[1760154648838,1.92,3798.5,3798.3,14.5]
[1760154649058,2.63199452,3799.4,3798.3,14.5]
[1760154649059,1.92,3798.4,3798.3,14.5]
[1760154649608,4.55268744,3798.4,3798.3,14.5]
[1760154650436,5.00948744,3798.4,3798.3,14.5]
[1760154652316,6.35673669,3798.4,3798.3,14.5]
[1760154652512,2.63345049,3797.3,3796.1,0.002]
[1760154652845,1.92,3798.3,3796.1,0.002]
[1760154652846,2.63352849,3797.2,3796.1,0.002]
[1760154653142,2.63297983,3798.0,3796.1,0.002]
[1760154653143,1.92,3797.8,3797.1,14.5]
[1760154653346,1.92,3797.4,3797.1,14.5]
[1760154653712,1.92,3797.3,3797.1,14.5]
[1760154653940,2.63345743,3797.3,3797.1,14.5]
[1760154654149,1.92,3797.5,3797.1,14.5]
[1760154654150,4.55351943,3797.2,3797.1,14.5]
[1760154655163,1.92,3797.2,3797.1,14.5]
[1760154656234,1.92,3797.2,3797.1,15.1336]
[1760154660226,4.55351943,3797.2,3797.1,14.5]
[1760154660446,4.53351943,3797.2,3797.1,14.5]
[1760154661156,1.9,3797.2,3797.1,14.5]
[1760154661959,4.53351943,3797.2,3797.1,14.5]
[1760154663358,4.99031943,3797.2,3797.1,14.5]
[1760154663555,4.53351943,3797.2,3797.1,14.5]
[1760154663730,4.94665409,3797.2,3797.1,14.5]
[1760154663931,5.40345409,3797.2,3797.1,14.5]
[1760154664364,5.40345409,3797.2,3796.1,0.002]
[1760154664365,4.01546021,3796.2,3796.1,0.002]
[1760154664561,4.55442134,3795.9,3795.8,0.002]
[1760154664761,2.63469898,3795.5,3795.4,14.502]
[1760154665065,0.4568,3795.5,3793.5,0.004]
[1760154665288,1.92,3795.2,3793.5,0.004]
[1760154665575,1.92,3795.4,3793.2,0.004]
[1760154665774,2.6347684,3795.4,3793.2,0.004]
[1760154666065,1.92,3794.0,3793.2,0.004]
[1760154666428,1.92,3794.0,3793.9,14.5]
[1760154666632,2.63524929,3794.8,3794.0,0.6336]
[1760154666862,1.92,3794.4,3794.0,0.6336]
[1760154667051,1.92,3794.9,3793.6,0.004]
[1760154667249,1.92,3794.7,3793.7,0.004]
[1760154667452,2.63526214,3794.7,3793.7,0.004]
[1760154667682,2.63442134,3796.0,3793.7,0.004]
[1760154667829,2.63469898,3795.5,3795.4,14.5]
[1760154668033,4.55469898,3795.5,3795.4,14.5]
[1760154668447,4.96793431,3795.5,3795.4,14.5]